bitfinex/quotes_ETHUSD_20250520
["timestamp","ask_amount","ask_price","bid_price","bid_amount"]
[1747783183342,3.94399526,2535.5,2535.4,3.93588539]
[1747783183541,3.94399526,2535.5,2535.4,7.72221039]
[1747783183705,3.94399526,2535.5,2535.4,6.11398539]
[1747783183914,3.94399526,2535.5,2535.4,3.93588539]
[1747783186344,3.94399526,2535.5,2535.4,6.36696939]
[1747783187146,3.94399526,2535.5,2535.4,3.93588539]
[1747783187345,3.94386095,2535.6,2535.4,3.93588539]
[1747783187511,3.94386095,2535.6,2535.5,0.78382483]
[1747783188523,3.94386095,2535.6,2535.5,1.14870883]
[1747783190344,3.94386095,2535.6,2535.5,22.88270883]
[1747783190553,3.94386095,2535.6,2535.5,22.098884]
[1747783193566,3.94386095,2535.6,2535.5,0.364884]
[1747783193773,3.94386095,2535.6,2535.5,13.231884]
[1747783194373,3.98383484,2535.6,2535.5,0.364884]
[1747783194652,4.69456095,2535.6,2535.5,0.364884]
[1747783195016,3.94430639,2535.3,2535.2,17.024]
[1747783196521,3.94313787,2536.1,2535.5,0.7645]
[1747783196857,3.94222444,2536.7,2535.8,0.55]
[1747783197041,0.7972,2536.9,2535.8,0.55]
[1747783197042,3.94295187,2536.2,2535.8,0.55]
[1747783197228,3.94197414,2536.8,2535.8,0.55]
[1747783197429,3.94303481,2536.2,2536.0,0.55]
[1747783197744,3.94303481,2536.2,2536.1,20.868]
[1747783199261,3.94352866,2535.8,2535.7,1.61364165]
[1747783199435,3.94352866,2535.8,2535.7,31.34764165]
[1747783200459,3.94352866,2535.8,2535.7,31.34664165]
[1747783200758,3.94352866,2535.8,2535.7,9.61364165]
[1747783201055,0.7801,2536.3,2535.7,13.2318921]
[1747783201257,3.94302062,2536.2,2535.7,13.2318921]
[1747783201459,3.94315325,2536.1,2535.7,13.2318921]
[1747783201658,3.94333752,2536.0,2535.7,13.2318921]
[1747783201849,3.94345625,2535.9,2535.7,13.2318921]
[1747783202159,3.94345625,2535.9,2535.7,15.52333131]
[1747783202363,3.94345625,2535.9,2535.8,8.0]
[1747783202742,3.94345625,2535.9,2535.8,11.7028921]
[1747783202932,3.94345625,2535.9,2535.8,3.7028921]
[1747783203131,3.94345625,2535.9,2535.8,11.7067921]
[1747783203330,3.94345625,2535.9,2535.8,15.40168345]
[1747783203633,0.8304,2536.9,2536.0,0.7967]
[1747783203862,3.94144451,2537.2,2536.2,8.0]
[1747783204060,3.94261932,2536.4,2536.3,12.866]
[1747783204379,0.05,2537.9,2536.3,12.866]
[1747783204380,3.94212953,2536.7,2536.6,0.55]
[1747783204667,3.94212953,2536.7,2536.6,8.0]
[1747783204855,3.94212953,2536.7,2536.6,21.731]
[1747783205236,3.94275125,2536.3,2536.2,9.3718]
[1747783205553,3.94275125,2536.3,2536.2,8.0]
[1747783205762,3.94275125,2536.3,2536.2,21.731]
[1747783205965,3.94290671,2536.2,2536.1,17.021]
[1747783206360,3.94290671,2536.2,2536.1,29.886]
[1747783206759,3.94321766,2536.0,2535.9,0.45423886]
[1747783206942,3.94323717,2536.0,2535.4,0.7834]
[1747783207137,3.94337316,2535.9,2535.4,0.7834]
[1747783207344,3.94399526,2535.5,2535.4,0.7834]
[1747783208074,3.94399526,2535.5,2535.4,2.99366389]
[1747783208573,3.94415082,2535.4,2535.3,0.45423886]
[1747783208737,3.94415082,2535.4,2535.3,8.0]
[1747783208936,3.94415082,2535.4,2535.3,29.729]
[1747783209672,3.94415082,2535.4,2535.3,8.0]
[1747783209876,3.94415082,2535.4,2535.3,29.729]
[1747783210097,3.94415082,2535.4,2535.3,8.0]
[1747783210443,3.94415082,2535.4,2535.3,29.729]
[1747783211202,3.94415082,2535.4,2535.3,32.7069]
[1747783211541,3.94415082,2535.4,2535.3,29.729]
[1747783211942,3.94446197,2535.2,2535.1,8.914]
[1747783212178,3.94446197,2535.2,2535.1,21.78]
[1747783212379,3.94446197,2535.2,2535.1,0.05]
[1747783212880,4.80633586,2535.2,2535.1,0.05]
[1747783213465,4.76636197,2535.2,2535.1,0.05]
[1747783213774,4.80633586,2535.2,2535.1,0.05]
[1747783214173,4.76791846,2534.2,2534.1,0.71666667]
[1747783214345,4.76791846,2534.2,2534.1,13.58266667]
[1747783214972,4.76791846,2534.2,2534.1,0.71666667]
[1747783215166,3.94601846,2534.2,2534.1,13.58566667]
[1747783216844,3.94601846,2534.2,2534.1,0.71666667]
[1747783219046,3.98599235,2534.2,2534.1,0.71666667]
[1747783219251,4.77251846,2534.2,2534.1,0.71666667]
[1747783222375,12.77251846,2534.2,2534.1,0.71666667]
[1747783223957,12.77251846,2534.2,2532.6,0.7915]
[1747783223958,0.71666667,2533.6,2531.1,0.05]
[1747783224153,11.95069532,2531.2,2531.1,0.05]
[1747783224358,3.95069532,2531.2,2531.1,0.05]
[1747783225361,3.95069532,2531.2,2531.1,3.56795966]
[1747783225879,3.95069532,2531.2,2531.1,13.703]
[1747783226082,3.95069532,2531.2,2531.1,0.05]
[1747783226274,3.95069532,2531.2,2531.1,13.703]
[1747783226683,3.95069532,2531.2,2531.1,13.709]
[1747783227193,3.95069532,2531.2,2531.1,0.05]
[1747783228803,12.73799532,2531.2,2531.1,0.05]
[1747783229669,15.98044134,2531.2,2531.1,0.05]
[1747783230072,16.53044134,2531.2,2531.1,0.05]
[1747783230905,15.98044134,2531.2,2531.1,0.05]
[1747783231685,16.53044134,2531.2,2531.1,0.05]
[1747783232177,16.53044134,2531.2,2530.1,0.05]
[1747783232178,3.95225673,2530.2,2530.1,0.05]
[1747783232377,4.72325673,2530.2,2530.1,0.05]
[1747783233631,7.96570275,2530.2,2530.1,0.05]
[1747783233974,4.72325673,2530.2,2530.1,0.05]
[1747783235298,5.1243011,2530.2,2530.1,0.05]
[1747783236712,4.3533011,2530.2,2530.1,0.05]
[1747783237632,3.95225673,2530.2,2530.1,0.05]
[1747783238495,7.23467664,2530.2,2530.1,0.05]
[1747783238736,7.19470275,2530.2,2530.1,0.05]
[1747783239432,3.95381938,2529.2,2529.1,30.77]
[1747783239632,3.95381938,2529.2,2529.1,17.096]
[1747783240902,3.95381938,2529.2,2529.1,26.809]
[1747783241096,3.95381938,2529.2,2529.1,17.925]
[1747783241424,3.95381938,2529.2,2529.1,30.77]
[1747783241935,3.95381938,2529.2,2529.1,17.096]
[1747783248152,3.95381938,2529.2,2529.1,25.983]
[1747783250363,3.95381938,2529.2,2529.1,30.69196288]
[1747783250713,3.95381938,2529.2,2529.1,39.24196288]
[1747783250919,3.9527254,2529.9,2529.4,0.55]
[1747783251171,3.95335046,2529.5,2529.4,0.55]
[1747783251359,3.95335046,2529.5,2529.4,22.23]
[1747783252039,3.95335046,2529.5,2529.3,0.8066]
[1747783252040,3.95350676,2529.4,2529.3,0.8066]
[1747783252358,3.95350676,2529.4,2529.3,23.3746]
[1747783253630,3.95350676,2529.4,2529.3,0.8066]
[1747783253832,3.95350676,2529.4,2529.3,23.3746]
[1747783254055,3.95350676,2529.4,2529.3,1.17259445]
[1747783254350,3.95350676,2529.4,2529.3,0.56599445]
[1747783255034,3.95350676,2529.4,2529.3,22.88399445]
[1747783255556,3.95350676,2529.4,2529.3,13.99599445]
[1747783256014,3.95350676,2529.4,2529.3,0.56599445]
[1747783256219,3.95350676,2529.4,2529.3,13.99599445]
[1747783257031,4.71830676,2529.4,2529.3,0.2]
[1747783257530,5.11530241,2529.4,2529.3,0.2]
[1747783257740,13.11530241,2529.4,2529.3,0.2]
[1747783258868,16.33030758,2529.4,2529.3,0.2]
[1747783259032,16.88030758,2529.4,2529.3,0.2]
[1747783259673,16.37090953,2529.4,2529.3,0.2]
[1747783260362,13.11530241,2529.4,2529.3,0.2]
[1747783261268,3.95350676,2529.4,2529.3,0.2]
[1747783262333,3.95350676,2529.4,2529.3,17.268]
[1747783263354,3.95350676,2529.4,2529.3,26.0245]
[1747783263589,3.95350676,2529.4,2529.3,26.39167814]
[1747783263790,3.95350676,2529.4,2529.3,29.92474595]
[1747783264083,3.95350676,2529.4,2529.3,26.39167814]
[1747783264286,3.95350676,2529.4,2529.3,27.28067814]
[1747783264761,3.95350676,2529.4,2529.3,31.82367814]
[1747783264965,3.95350676,2529.4,2529.3,40.71267814]
[1747783265160,3.95350676,2529.4,2529.3,39.95617814]
[1747783266796,3.95350676,2529.4,2529.3,17.63517814]
[1747783266957,3.95350676,2529.4,2529.3,39.95517814]
[1747783267355,0.7619,2530.6,2529.4,8.55]
[1747783267554,0.7619,2531.0,2529.5,0.8143]
[1747783267759,3.95319418,2529.6,2529.5,1.3643]
[1747783268008,3.95319418,2529.6,2529.5,0.8143]
[1747783268307,0.7619,2531.0,2529.7,1.97429076]
[1747783268471,3.9528062,2529.9,2529.7,1.97429076]
[1747783268670,3.95288165,2529.8,2529.7,1.42429076]
[1747783268893,3.95288165,2529.8,2529.7,31.74429076]
[1747783269793,3.95288165,2529.8,2529.7,31.50147814]
[1747783271596,3.95288165,2529.8,2529.7,31.49947814]
[1747783271802,3.95288165,2529.8,2529.7,9.18147814]
[1747783272102,3.95288165,2529.8,2529.7,31.49847814]
[1747783272257,3.95288165,2529.8,2529.7,23.49847814]
[1747783272891,3.95288165,2529.8,2529.7,23.49747814]
[1747783274079,3.95112303,2531.0,2529.9,0.7655]
[1747783274316,0.8276,2531.3,2530.0,0.55]
[1747783274514,3.95241294,2530.1,2530.0,0.55]
[1747783274713,3.9500711,2531.6,2530.6,0.55]
[1747783274914,0.8776,2531.9,2530.5,0.7655]
[1747783274915,3.95131974,2530.8,2530.7,47.378]
[1747783275113,3.95131974,2530.8,2530.7,25.063]
[1747783275315,3.95131974,2530.8,2530.7,47.378]
[1747783275615,3.95131974,2530.8,2530.7,17.063]
[1747783275821,3.95131974,2530.8,2530.7,39.378]
[1747783276025,3.95131974,2530.8,2530.7,41.16085]
[1747783276182,3.95131974,2530.8,2530.7,41.71085]
[1747783276899,3.95125295,2530.9,2530.8,0.818]
[1747783277112,3.95125295,2530.9,2530.8,12.72036288]
[1747783277495,3.95109118,2531.0,2530.9,8.55]
[1747783277826,3.95093491,2531.1,2530.9,23.42802]
[1747783278028,3.95093491,2531.1,2531.0,4.18283829]
[1747783278231,3.95093491,2531.1,2531.0,1.368]
[1747783278427,3.95010183,2531.6,2531.1,0.55]
[1747783278633,3.94975906,2531.8,2531.3,9.3036]
[1747783278814,3.9501525,2531.6,2531.5,0.55]
[1747783279404,3.94991507,2531.7,2531.5,0.55]
[1747783279698,3.9500711,2531.6,2531.5,0.55]
[1747783280485,3.95022713,2531.5,2531.3,0.7536]
[1747783280682,3.95038318,2531.4,2531.3,0.7536]
[1747783280888,3.95038318,2531.4,2531.3,31.6116]
[1747783281197,3.95038318,2531.4,2531.3,12.46476]
[1747783281432,3.95038318,2531.4,2531.3,31.0616]
[1747783281799,3.94975906,2531.8,2531.4,8.55]
[1747783282108,3.95022713,2531.5,2531.4,8.55]
[1747783282800,3.95022713,2531.5,2531.4,0.55]
[1747783283001,3.95022713,2531.5,2531.4,22.856]
[1747783283203,3.94995293,2531.7,2531.6,0.55]
[1747783283822,3.9500711,2531.6,2531.3,0.7536]
[1747783283989,3.95118456,2530.9,2530.7,17.46090364]
[1747783284193,3.95118456,2530.9,2530.8,22.049]
[1747783284391,3.95038318,2531.4,2530.8,22.049]
[1747783284713,3.95112765,2531.0,2530.9,8.817]
[1747783285026,3.95112765,2531.0,2530.9,0.817]
[1747783285205,3.95112765,2531.0,2530.9,8.817]
[1747783287792,3.9509641,2531.1,2531.0,0.55]
[1747783287949,3.99970152,2531.9,2531.0,0.55]
[1747783287950,3.95075171,2531.2,2531.1,8.55]
[1747783288770,3.95064758,2531.3,2531.2,0.55]
[1747783288980,3.95069532,2531.2,2531.1,8.0]
[1747783289192,3.95069532,2531.2,2531.1,8.55]
[1747783289576,3.95069532,2531.2,2531.1,9.80086]
[1747783292105,3.95059977,2531.3,2531.2,0.55]
[1747783293090,0.05,2531.9,2531.2,0.55]
[1747783293399,0.05,2531.9,2531.4,8.0]
[1747783294717,0.05,2531.9,2531.5,8.881]
[1747783295637,0.05,2531.9,2531.2,0.55]
[1747783295796,0.05,2531.9,2531.6,22.045]
[1747783296140,0.05,2531.9,2531.7,17.052]
[1747783298424,0.05,2531.9,2531.8,13.164]
[1747783298928,0.8815,2531.9,2531.8,13.164]
[1747783303435,0.8815,2531.9,2531.7,17.052]
[1747783303725,0.8815,2531.9,2531.8,13.163]
[1747783305797,0.8815,2531.9,2531.7,17.052]
[1747783306229,0.8815,2531.9,2531.8,13.163]
[1747783306729,0.8815,2531.9,2531.7,17.052]
[1747783306937,0.8815,2531.9,2531.7,30.215]
[1747783307140,0.8815,2531.9,2531.7,17.052]
[1747783307298,0.8815,2531.9,2531.7,30.215]
[1747783309932,0.8815,2531.9,2531.7,17.052]
[1747783310245,0.8815,2531.9,2531.8,13.164]
[1747783311851,0.8815,2531.9,2531.7,30.216]
[1747783316666,0.8815,2531.9,2531.7,13.164]
[1747783319880,0.05,2531.9,2531.7,13.164]
[1747783321477,0.05,2531.9,2531.8,0.801]
[1747783322653,0.05,2531.9,2531.5,0.801]
[1747783322992,0.05,2531.9,2531.6,21.608]
[1747783323191,0.05,2531.9,2531.5,0.801]
[1747783323407,0.05,2531.9,2531.6,21.608]
[1747783323695,0.05,2531.9,2531.2,17.854]
[1747783323895,0.05,2531.9,2531.3,21.607]
[1747783324098,0.05,2531.9,2531.5,0.801]
[1747783324303,0.05,2531.9,2531.7,0.801]
[1747783324595,0.05,2531.9,2531.8,17.0746611]
[1747783324761,0.05,2531.9,2531.8,18.8392064]
[1747783325100,0.05,2531.9,2531.8,18.0097334]
[1747783325485,0.05,2531.9,2531.8,26.4751684]
[1747783326479,0.05,2531.9,2531.8,26.84182986]
[1747783327531,0.04817817,2531.9,2531.8,26.84182986]
[1747783328031,0.04817817,2531.9,2531.8,21.6291572]
[1747783328198,0.04817817,2531.9,2531.8,30.5071572]
[1747783329219,0.04817817,2531.9,2531.8,38.5071572]
[1747783330922,0.04817817,2531.9,2531.8,16.9031572]
[1747783331230,0.04817817,2531.9,2531.8,38.5051572]
[1747783332614,0.04817817,2531.9,2531.8,11.9151772]
[1747783332928,0.04817817,2531.9,2531.8,27.9256762]
[1747783333235,0.04817817,2531.9,2531.8,28.8046762]
[1747783333439,0.05,2532.9,2532.0,0.55]
[1747783333608,0.05,2532.9,2532.4,0.55]
[1747783333811,0.05,2532.9,2532.5,38.68748]
[1747783334015,0.05,2532.9,2532.5,29.769]
[1747783334206,0.05,2532.9,2532.6,8.879]
[1747783335536,0.05,2532.9,2532.5,17.047]
[1747783335843,0.05,2532.9,2532.8,1.3059]
[1747783335995,0.05,2532.9,2532.8,0.7559]
[1747783336196,0.05,2532.9,2532.5,20.13319]
[1747783336436,0.05,2532.9,2532.6,21.599]
[1747783336641,0.05,2532.9,2532.7,3.90236288]
[1747783338446,0.05,2532.9,2532.5,19.58319]
[1747783338447,0.05,2532.9,2532.8,21.598]
[1747783340074,0.05,2532.9,2532.8,29.361237]
[1747783340271,0.05,2532.9,2532.8,28.753137]
[1747783340477,0.05,2532.9,2532.8,21.598]
[1747783340636,0.05,2532.9,2532.8,23.7578]
[1747783341077,0.05,2532.9,2532.8,28.477174]
[1747783341738,0.05,2532.9,2532.8,29.846474]
[1747783341940,0.05,2532.9,2532.8,37.277402]
[1747783342465,0.05,2532.9,2532.8,33.323133]
[1747783342942,0.05,2532.9,2532.8,41.323133]
[1747783346670,0.05,2532.9,2532.8,41.68668277]
[1747783346980,0.05,2533.9,2532.9,8.55]
[1747783347188,0.05,2533.9,2533.1,8.55]
[1747783347483,0.05,2533.9,2533.3,0.55]
[1747783347681,0.05,2533.9,2533.5,8.55]
[1747783347873,0.05,2533.9,2533.6,17.04]
[1747783348583,0.05,2533.9,2533.7,21.302]
[1747783348780,0.05,2533.9,2533.6,17.04]
[1747783348987,0.8602,2533.9,2533.7,12.427]
[1747783349297,0.8602,2533.9,2533.8,12.427]
[1747783349500,0.8602,2533.9,2533.6,17.04]
[1747783349795,0.8602,2533.9,2533.8,12.427]
[1747783350757,0.8602,2533.9,2533.6,17.04]
[1747783350962,0.8602,2533.9,2533.7,12.426]
[1747783351370,0.05,2533.9,2533.7,12.426]
[1747783353400,0.05,2533.9,2533.8,21.3]
[1747783353798,0.05,2533.9,2533.6,17.04]
[1747783354105,0.05,2533.9,2533.7,21.3]
[1747783355317,0.05,2533.9,2533.7,25.134]
[1747783355678,0.05,2533.9,2533.7,25.8991]
[1747783356305,0.05,2533.9,2533.7,22.0651]
[1747783357701,0.05,2533.9,2533.8,16.20635]
[1747783357921,0.05,2533.9,2533.8,12.880694]
[1747783358074,0.05,2533.9,2533.8,12.0856]
[1747783358468,0.05,2533.9,2533.8,11.66635]
[1747783358703,0.05,2533.9,2533.7,8.0]
[1747783358871,0.8081,2533.9,2533.8,12.425]
[1747783359074,0.8081,2533.9,2533.6,29.464]
[1747783359373,0.7581,2533.7,2533.6,29.464]
[1747783360010,0.7581,2533.7,2533.4,12.424]
[1747783360316,0.8041,2533.4,2533.3,12.424]
[1747783361101,8.8041,2533.4,2533.3,12.424]
[1747783361294,8.8041,2533.4,2533.1,12.424]
[1747783363535,0.8041,2533.4,2533.1,12.424]
[1747783364989,0.8238,2533.8,2533.1,12.424]
[1747783368087,0.8238,2533.8,2532.9,8.0]
[1747783368393,0.8238,2533.8,2533.0,21.301]
[1747783368596,0.8238,2533.8,2533.1,21.301]
[1747783368784,0.8238,2533.8,2533.1,12.427]
[1747783369418,0.8238,2533.8,2533.2,12.427]
[1747783369919,0.7804,2533.7,2532.8,17.036]
[1747783370117,0.7809,2533.5,2532.9,21.301]
[1747783370581,0.7809,2533.5,2532.9,12.427]
[1747783370776,0.03997389,2533.4,2532.8,17.036]
[1747783371120,0.7809,2533.3,2532.9,12.427]
[1747783371690,0.7809,2533.3,2532.8,17.036]
[1747783371916,0.03997389,2533.2,2532.9,12.427]
[1747783372118,0.7809,2533.3,2533.0,12.427]
[1747783374025,0.7809,2533.3,2532.2,1.16327431]
[1747783374209,0.7809,2533.1,2532.3,12.428]
[1747783375899,0.7809,2533.1,2532.3,21.304]
[1747783376099,0.7809,2533.1,2532.1,17.042]
[1747783376317,0.7809,2533.1,2532.4,12.428]
[1747783376603,0.8127,2533.0,2532.5,12.363]
[1747783376802,0.8127,2532.8,2532.5,12.363]
[1747783380267,0.8127,2532.8,2532.1,17.042]
[1747783380422,0.8127,2532.8,2532.3,8.876]
[1747783382545,0.8127,2532.8,2532.4,21.241]
[1747783384158,0.7979,2533.1,2532.4,21.241]
[1747783386164,0.7979,2533.1,2532.5,0.769]
[1747783386461,10.18,2533.2,2532.5,0.769]
[1747783387854,0.8196,2533.7,2532.6,0.55]
[1747783388161,0.05,2535.9,2532.8,0.55]
[1747783388162,0.8196,2534.4,2532.8,0.55]
[1747783388365,0.8196,2533.8,2532.9,12.365]
[1747783388529,0.8196,2533.8,2533.0,1.2915]
[1747783388729,0.8196,2533.8,2533.1,17.045]
[1747783388954,0.8196,2533.8,2533.2,8.877]
[1747783389365,0.8196,2533.8,2533.2,9.6676]
[1747783389525,0.05,2533.9,2533.2,9.6676]
[1747783389725,0.05,2533.9,2533.3,2.67126]
[1747783389932,0.05,2533.9,2533.4,12.364]
[1747783390848,0.05,2533.9,2533.5,0.7722]
[1747783391463,0.05,2533.9,2533.6,21.241]
[1747783392373,0.859,2533.9,2533.7,12.362]
[1747783392584,0.859,2533.9,2533.3,0.7722]
[1747783392769,0.859,2533.9,2533.2,0.39553083]
[1747783392770,0.859,2533.9,2533.4,21.237]
[1747783393087,0.859,2533.9,2533.5,21.237]
[1747783393938,0.859,2533.9,2533.6,12.362]
[1747783394267,0.859,2533.9,2533.1,17.045]
[1747783394268,0.859,2533.9,2533.5,12.362]
[1747783394491,8.05,2533.9,2533.5,12.362]
[1747783394652,0.7834,2533.8,2533.1,17.045]
[1747783394996,0.7834,2533.5,2533.1,17.045]
[1747783395179,0.7834,2533.3,2533.1,29.407]
[1747783400511,0.7834,2533.3,2533.1,17.045]
[1747783400803,0.82337389,2533.3,2533.1,17.045]
[1747783400951,0.7834,2533.3,2533.1,17.045]
[1747783401508,0.7834,2533.3,2532.9,12.363]
[1747783401657,11.20983679,2533.1,2532.3,17.042]
[1747783401861,8.7994,2533.0,2532.4,21.239]
[1747783402752,8.7994,2533.0,2532.4,12.363]
[1747783404065,0.7994,2533.0,2532.4,12.363]
[1747783404295,0.7994,2533.0,2532.4,16.1911]
[1747783404505,8.0,2533.1,2532.5,0.7935]
[1747783405101,0.7704,2533.5,2532.6,0.03948667]
[1747783405301,0.7704,2533.7,2532.7,0.7935]
[1747783405653,0.7704,2533.7,2532.8,21.241]
[1747783408303,8.7704,2533.7,2532.9,21.231]
[1747783409540,8.7704,2533.7,2533.0,21.231]
[1747783409739,11.98023679,2533.7,2533.0,12.355]
[1747783409874,8.7704,2533.7,2533.1,12.355]
[1747783410075,11.98023679,2533.7,2533.1,12.355]
[1747783411506,8.7704,2533.7,2533.1,12.355]
[1747783411867,0.7704,2533.7,2533.1,12.355]
[1747783412101,8.0,2533.5,2533.1,12.355]
[1747783412267,8.7704,2533.7,2533.1,12.355]
[1747783413307,18.9504,2533.7,2533.1,12.355]
[1747783414410,3.20983679,2533.6,2533.1,12.355]
[1747783414594,3.20983679,2533.6,2532.9,147.3645]
[1747783415303,8.0,2533.5,2533.0,12.355]
[1747783416605,10.18,2533.4,2533.0,12.355]
[1747783417006,0.8114,2533.3,2533.0,12.355]
[1747783417678,8.8114,2533.3,2533.0,12.355]
[1747783419822,8.8114,2533.3,2532.9,147.3645]
[1747783419980,0.03997389,2533.2,2532.9,147.3645]
[1747783420318,11.20983679,2533.3,2532.9,147.3645]
[1747783420515,3.20983679,2533.0,2532.9,147.3645]
[1747783420810,21.38983679,2533.0,2532.9,147.3645]
[1747783421395,26.90123679,2533.0,2532.9,147.3645]
[1747783421596,22.75123679,2533.0,2532.9,147.3645]
[1747783421980,29.07723679,2533.0,2532.9,120.98063393]
[1747783422205,29.07723679,2533.0,2532.9,116.48108208]
[1747783422206,29.28304966,2533.0,2532.9,116.48108208]
[1747783422522,28.47164966,2533.0,2532.9,96.50317587]
[1747783422744,28.47164966,2533.0,2532.9,89.18615126]
[1747783422888,30.83464966,2533.0,2532.9,84.4532567]
[1747783423092,30.83464966,2533.0,2532.9,83.40443043]
[1747783423093,39.71164966,2533.0,2532.9,83.40443043]
[1747783423326,39.71164966,2533.0,2532.9,83.17453043]
[1747783423484,39.71164966,2533.0,2532.9,81.89123043]
[1747783423805,39.71164966,2533.0,2532.9,80.06428815]
[1747783424006,39.71164966,2533.0,2532.9,79.71428815]
[1747783424216,39.71164966,2533.0,2532.9,77.74041435]
[1747783424387,39.71164966,2533.0,2532.9,75.76654055]
[1747783424589,39.71164966,2533.0,2532.9,60.59628366]
[1747783424841,39.71164966,2533.0,2532.9,59.77487251]
[1747783424989,39.71164966,2533.0,2532.9,58.48187251]
[1747783425328,39.71164966,2533.0,2532.9,55.22100765]
[1747783425686,37.34864966,2533.0,2532.9,55.22100765]
[1747783426085,43.76881287,2533.0,2532.9,55.22100765]
[1747783426286,46.97864966,2533.0,2532.9,55.22100765]
[1747783426536,10.38581287,2533.0,2532.9,55.22100765]
[1747783426688,13.38983679,2533.0,2532.9,55.22100765]
[1747783427021,18.08983679,2533.0,2532.9,55.22100765]
[1747783427191,23.08579613,2533.0,2532.9,55.22100765]
[1747783427392,18.93579613,2533.0,2532.9,55.22100765]
[1747783427619,47.53263292,2533.0,2532.9,55.22100765]
[1747783428152,47.53263292,2533.0,2532.9,45.33393901]
[1747783428631,47.53263292,2533.0,2532.9,42.07307415]
[1747783430105,26.29563292,2533.0,2532.9,42.07307415]
[1747783430305,47.53363292,2533.0,2532.9,42.07307415]
[1747783434464,47.53463292,2533.0,2532.9,42.07307415]
[1747783434628,47.53504593,2533.0,2532.9,42.07307415]
[1747783435119,49.89804593,2533.0,2532.9,18.74514065]
[1747783436254,49.99804593,2533.0,2532.9,18.74514065]
[1747783436562,86.32356715,2533.0,2532.9,12.19755848]
[1747783436851,84.64088415,2533.0,2532.9,12.19755848]
[1747783437171,84.84703106,2533.0,2532.9,11.55585101]
[1747783437312,0.55,2531.6,2531.1,0.05]
[1747783437517,0.55,2531.3,2531.1,0.05]
[1747783438147,8.0,2531.2,2531.1,0.05]
[1747783438314,0.94654341,2531.2,2531.1,0.05]
[1747783438752,4.15679321,2531.2,2531.1,0.05]
[1747783439311,8.30679321,2531.2,2531.1,0.05]
[1747783440159,2.363,2531.0,2529.8,0.66666667]
[1747783440471,5.09654341,2531.2,2529.8,0.66666667]
[1747783440472,0.55,2530.2,2529.8,0.66666667]
[1747783440813,0.39425376,2530.2,2529.8,0.66666667]
[1747783441018,0.55,2530.3,2529.8,0.66666667]
[1747783441522,0.55,2530.2,2529.8,0.66666667]
[1747783441750,3.7602498,2530.2,2529.8,0.66666667]
[1747783441957,0.55,2530.2,2529.8,0.66666667]
[1747783442158,29.779,2530.2,2529.8,0.66666667]
[1747783442477,30.16577373,2530.2,2529.8,0.66666667]
[1747783442617,8.38677373,2530.2,2529.8,0.66666667]
[1747783443068,8.38677373,2530.2,2529.9,0.7904]
[1747783443261,8.38677373,2530.2,2529.8,0.66666667]
[1747783443421,8.93677373,2530.2,2529.8,0.66666667]
[1747783443618,21.235,2530.6,2529.8,1.45186667]
[1747783443817,0.55,2530.4,2529.8,1.45186667]
[1747783444754,12.35,2530.6,2529.8,1.45186667]
[1747783445058,0.55,2530.5,2529.8,1.45186667]
[1747783445837,8.95396455,2530.5,2529.8,0.66666667]
[1747783446036,0.55,2530.3,2529.8,0.66666667]
[1747783446255,8.55,2530.3,2529.8,0.66666667]
[1747783447362,11.7602498,2530.3,2529.8,0.66666667]
[1747783448391,8.0,2530.3,2529.8,1.49006667]
[1747783448553,0.55,2530.2,2529.8,1.49006667]
[1747783448953,8.0,2530.3,2529.8,1.49006667]
[1747783451178,0.55,2530.2,2529.8,1.49006667]
[1747783451593,12.7,2530.2,2529.8,1.49006667]
[1747783451784,8.0,2530.2,2529.8,1.49006667]
[1747783452090,8.0,2530.2,2529.8,0.66666667]
[1747783455115,15.063,2530.2,2529.8,0.66666667]
[1747783455414,25.44902154,2530.2,2529.8,0.66666667]
[1747783455609,37.80402154,2530.2,2529.8,0.66666667]
[1747783456375,35.44102154,2530.2,2529.8,0.66666667]
[1747783456573,10.38602154,2530.2,2529.8,1.48516667]
[1747783460932,10.93602154,2530.2,2529.8,0.66666667]
[1747783461134,18.38602154,2530.2,2529.8,0.66666667]
[1747783461632,0.95396455,2530.5,2530.1,0.8512]
[1747783461633,0.40396455,2530.5,2530.1,0.8512]
[1747783461832,22.536,2530.8,2530.1,0.8512]
[1747783461833,8.0,2530.7,2530.1,0.8512]
[1747783462147,4.7,2530.4,2530.1,0.05]
[1747783462639,0.55,2530.2,2530.1,0.05]
[1747783463306,0.55,2530.4,2530.1,0.05]
[1747783470263,0.55,2530.2,2530.1,0.05]
[1747783470757,0.55,2529.8,2529.2,0.2]
[1747783470962,0.55,2529.3,2529.2,0.2]
[1747783471122,0.55,2529.4,2529.2,0.2]
[1747783471959,0.93544513,2529.4,2529.2,0.2]
[1747783472269,0.38544513,2529.4,2529.2,0.2]
[1747783472417,0.55,2529.9,2529.3,0.7628]
[1747783472616,8.55,2530.1,2529.3,0.7628]
[1747783473038,8.0,2530.1,2529.3,0.7628]
[1747783473735,0.55,2530.0,2529.3,0.7628]
[1747783478865,3.2102498,2529.9,2529.3,0.7628]
[1747783479068,8.55,2529.8,2529.3,0.7628]
[1747783479360,8.55,2529.8,2529.2,0.2]
[1747783480232,3.2102498,2530.0,2529.2,0.2]
[1747783480432,20.55628378,2530.2,2529.3,0.7676]
[1747783480979,0.55,2530.1,2529.3,0.7676]
[1747783481642,12.55628378,2530.2,2529.3,0.7676]
[1747783481846,8.55,2530.1,2529.3,0.7676]